Department Family,Date Paid,Expense Type,Expense Area,Supplier,Transaction Number,Amount,Vat Inclusive
Crown Prosecution Service ,03/05/23,Crown Court Very High Cost Cases Full Scheme,SEOC Team 2,2 Hare Court Chambers -Chambers of Orlando Pownall,115661(JKI*),"29,398.49",Y
Crown Prosecution Service ,03/05/23,Crown Court Very High Cost Cases Full Scheme,RWD North Unit,St Pauls Chambers Leeds,168223,"31,329.00",Y
Crown Prosecution Service ,03/05/23,Crown Court Graduated Fee Scheme,London South Complex Casework Unit,Furnival Chambers,172251/TF/,"27,934.92",Y
Crown Prosecution Service ,03/05/23,Crown Court Graduated Fee Scheme,London North Crown Court Unit,Foundry Chambers (9-12 Bell Yard),192403/DA,"25,536.84",Y
Crown Prosecution Service ,03/05/23,General Professional Services,DTS Programme Project Cost,NTT Data UK Ltd London,5028020,"182,568.00",Y
Crown Prosecution Service ,03/05/23,General Professional Services,DTS Programme Project Cost,NTT Data UK Ltd London,5028025,"155,490.00",Y
Crown Prosecution Service ,03/05/23,General Professional Services,DTS Programme Project Cost,NTT Data UK Ltd London,5028026,"64,902.00",Y
Crown Prosecution Service ,03/05/23,Crown Court Graduated Fee Scheme,Yorks and Humbs CC Legal,Exchange Chambers Leeds ,629796 - NJ,"28,028.40",Y
Crown Prosecution Service ,03/05/23,Other publicity and media costs,Yorkshire and Humberside Management Team,Linkedin Dublin,78111532318,"1,000.00",
Crown Prosecution Service ,03/05/23,Other publicity and media costs,CPS Direct Out of Hours Prosecutors,Linkedin Dublin,78111532318,"1,000.00",
Crown Prosecution Service ,03/05/23,Other publicity and media costs,PF Operational HR Costs,Linkedin Dublin,78111532318,"43,329.21",
Crown Prosecution Service ,03/05/23,Crown Court Graduated Fee Scheme,West Midlands Complex Casework Unit,No 5 Fountain Court Chambers,818701//3,"63,996.60",Y
Crown Prosecution Service ,03/05/23,Advice/PreSending Very High Cost Cases Full Scheme,Special Crime Unit London,6 Kings Bench Walk- Chambers of D Fisher & D Perry,96616,"45,237.00",Y
Crown Prosecution Service ,03/05/23,Transcriptions and Translation,Other Corporate Programme Payments,AVR Transcription Ltd Bolton,FEB23-CPS,"58,137.15",
Crown Prosecution Service ,03/05/23,Recoverable VAT control,Balance Sheet,AVR Transcription Ltd Bolton,FEB23-CPS,"11,627.43",Y
Crown Prosecution Service ,03/05/23,Crown Court Graduated Fee Scheme,SEOC Team 1,3 Raymond Buildings,HD/254284,"67,201.56",Y
Crown Prosecution Service ,03/05/23,Recoverable VAT control,Balance Sheet,AVR Transcription Ltd Bolton,JAN23-CPS,"11,950.93",Y
Crown Prosecution Service ,03/05/23,Transcriptions and Translation,Other Corporate Programme Payments,AVR Transcription Ltd Bolton,JAN23-CPS,"59,754.67",
Crown Prosecution Service ,03/05/23,Recoverable VAT control,Balance Sheet,AVR Transcription Ltd Bolton,MAR23-CPS,"12,073.85",Y
Crown Prosecution Service ,03/05/23,Transcriptions and Translation,Other Corporate Programme Payments,AVR Transcription Ltd Bolton,MAR23-CPS,"60,369.27",
Crown Prosecution Service ,03/05/23,General Professional Services,Strategy and Policy,Reed Talent Solutions London,R41056271M,"93,278.58",Y
Crown Prosecution Service ,04/05/23,Reactive Maintenance,Estate and FM: Programme,Government Property Agency London,00000001/25360,"31,600.90",
Crown Prosecution Service ,04/05/23,Reactive Maintenance,Estate and FM: Programme,Government Property Agency London,00000001/25365,"43,241.66",
Crown Prosecution Service ,04/05/23,Crown Court Graduated Fee Scheme,RWD North Unit,Queen Square Chambers,155266RS,"27,314.10",Y
Crown Prosecution Service ,04/05/23,Crown Court Graduated Fee Scheme,London North Complex Casework Unit,Furnival Chambers,175513/,"28,934.40",Y
Crown Prosecution Service ,04/05/23,Apprenticeship Levy payments Permanent,Other Corporate Admin Payments,HM Revenue and Customs,948PB000021422401,"8,161.32",
Crown Prosecution Service ,04/05/23,Recoverable VAT control,Balance Sheet,FlyForm LTD Cardiff,INV-11373,"4,879.21",Y
Crown Prosecution Service ,04/05/23,IT services,DTS Programme Project Cost,FlyForm LTD Cardiff,INV-11373,"24,395.99",
Crown Prosecution Service ,05/05/23,Crown Court Graduated Fee Scheme,RWD North Unit,23 Essex Street Chambers,202103-CWH,"25,532.39",Y
Crown Prosecution Service ,05/05/23,Other publicity and media costs,PF Operational HR Costs,BPP Professional Education,22110,"62,148.00",Y
Crown Prosecution Service ,05/05/23,Shared services,DID DTS Change,Cabinet Office RM Shared Services,3826361,"27,829.00",
Crown Prosecution Service ,05/05/23,Advice/PreSending Very High Cost Cases Full Scheme,RWD North Unit,Exchange Chambers Leeds ,535000 AH STAGE 16,"26,768.29",Y
Crown Prosecution Service ,05/05/23,Advice/PreSending Very High Cost Cases Full Scheme,RWD Midlands Wales Unit,QEB Hollis Whiteman Chambers,WB 111389 10,"41,405.00",Y
Crown Prosecution Service ,05/05/23,Advice/PreSending Very High Cost Cases Full Scheme,RWD Midlands Wales Unit,QEB Hollis Whiteman Chambers,WB 111389 9,"37,635.00",Y
Crown Prosecution Service ,05/05/23,Crown Court Graduated Fee Scheme,South East Complex Casework Unit,QEB Hollis Whiteman Chambers,ZB 112467,"30,095.33",Y
Crown Prosecution Service ,09/05/23,Crown Court Very High Cost Cases Full Scheme,Mersey Cheshire Complex Casework Unit,Harrington Street Chambers,1096572/NJS40,"37,594.80",
Crown Prosecution Service ,09/05/23,Other Expert Fees,Mersey Cheshire Complex Casework Unit,,1553,"28,800.00",
Crown Prosecution Service ,09/05/23,Crown Court Graduated Fee Scheme,North East Complex Casework Unit,Dere Street Barristers,369384 AR,"51,237.18",
Crown Prosecution Service ,09/05/23,Crown Court Graduated Fee Scheme,North East Complex Casework Unit,Dere Street Barristers,369384 RH1,"32,152.38",
Crown Prosecution Service ,09/05/23,Crown Court Graduated Fee Scheme,North West Complex Casework Unit,Dere Street Barristers,375192 DC,"28,876.12",
Crown Prosecution Service ,09/05/23,External legal advice - Civil litigation,Other Corporate Programme Payments,Government Legal Department,524195,"107,281.36",Y
Crown Prosecution Service ,09/05/23,IT services,Other IT costs,Lumen Technologies UK Ltd,640026018/1142016,"51,727.82",Y
Crown Prosecution Service ,09/05/23,Crown Court Graduated Fee Scheme,West Midlands Complex Casework Unit,No 5 Fountain Court Chambers,818350,"76,816.20",Y
Crown Prosecution Service ,09/05/23,Crown Court Graduated Fee Scheme,West Midlands Complex Casework Unit,No 5 Fountain Court Chambers,822339,"36,008.40",Y
Crown Prosecution Service ,09/05/23,Crown Court Graduated Fee Scheme,West Midlands Complex Casework Unit,No 5 Fountain Court Chambers,822339,"72,487.20",Y
Crown Prosecution Service ,09/05/23,Recoverable VAT control,Balance Sheet,CGI IT UK Ltd,GB014104286,"153,239.83",Y
Crown Prosecution Service ,09/05/23,Intangibles asset purchase clearing CMS,DTS ICT Capital Expenditure,CGI IT UK Ltd,GB014104286,"766,199.14",
Crown Prosecution Service ,09/05/23,Recoverable VAT control,Balance Sheet,CGI IT UK Ltd,GB014104903,"9,377.25",Y
Crown Prosecution Service ,09/05/23,Intangibles asset purchase clearing CMS,DTS ICT Capital Expenditure,CGI IT UK Ltd,GB014104903,"46,886.27",
Crown Prosecution Service ,09/05/23,Recoverable VAT control,Balance Sheet,CGI IT UK Ltd,GB014104964,"7,873.69",Y
Crown Prosecution Service ,09/05/23,Intangibles asset purchase clearing CMS,DTS ICT Capital Expenditure,CGI IT UK Ltd,GB014104964,"39,368.44",
Crown Prosecution Service ,09/05/23,Data Communications,PSN Services Contract,Vodafone Ltd formerly Cable and Wireless Milton Keynes,SB67347,"34,449.60",Y
Crown Prosecution Service ,10/05/23,Other managed/contractor services,PF Operational HR Costs,People Asset Management Limited Warrington,0000128319,"27,540.00",Y
Crown Prosecution Service ,10/05/23,Other managed/contractor services,PF People and Business Change,People Asset Management Limited Warrington,0000128319,"3,060.00",Y
Crown Prosecution Service ,10/05/23,Crown Court Graduated Fee Scheme,North West Complex Casework Unit,Dere Street Barristers,375192 JE1,"62,386.68",
Crown Prosecution Service ,10/05/23,Recoverable VAT control,Balance Sheet,Xerox (UK) Ltd,900227880,"4,370.00",Y
Crown Prosecution Service ,10/05/23,Short term leases from 2 to 12 months: IT and Equipment,Print Contract,Xerox (UK) Ltd,900227880,"21,850.00",
Crown Prosecution Service ,10/05/23,Recoverable VAT control,Balance Sheet,CGI IT UK Ltd,GB014104282,"88,126.12",Y
Crown Prosecution Service ,10/05/23,Intangibles asset purchase clearing CMS,DTS ICT Capital Expenditure,CGI IT UK Ltd,GB014104282,"440,630.60",
Crown Prosecution Service ,10/05/23,IT non capital software licences,Legal Reference and ICT Licenses,Lexis Nexis UK,I0356393G,"218,181.00",
Crown Prosecution Service ,11/05/23,New Works: non capital,Estate and FM: Programme,Government Property Agency London,00000001/24256,"283,260.17",Y
Crown Prosecution Service ,11/05/23,Reactive Maintenance,Estate and FM: Programme,Government Property Agency London,00000001/25366,"42,294.98",
Crown Prosecution Service ,11/05/23,Facilities management,Estate and FM: Administration,Government Property Agency London,00000001/25670,"101,640.00",Y
Crown Prosecution Service ,11/05/23,Facilities management,Estate and FM: Programme,Government Property Agency London,00000001/25670,"1,698,360.00",Y
Crown Prosecution Service ,11/05/23,Facilities management,Estate and FM: Administration,Government Property Agency London,00000001/25671,"51,407.00",Y
Crown Prosecution Service ,11/05/23,Facilities management,Estate and FM: Programme,Government Property Agency London,00000001/25671,"548,593.00",Y
Crown Prosecution Service ,11/05/23,Crown Court Graduated Fee Scheme,Cymru Wales Complex Casework Unit,30 Park Place Chambers,631362-1/CR,"31,556.88",
Crown Prosecution Service ,11/05/23,UK National rail travel,Corporate Communication,Clarity Travel Management,CPSHQ070523,"1,355.90",
Crown Prosecution Service ,11/05/23,UK National rail travel,Central Legal Training Team,Clarity Travel Management,CPSHQ070523,852.70,
Crown Prosecution Service ,11/05/23,UK National rail travel,Operational Change,Clarity Travel Management,CPSHQ070523,"2,980.60",
Crown Prosecution Service ,11/05/23,UK National rail travel,DID DTS Change,Clarity Travel Management,CPSHQ070523,"2,319.55",
Crown Prosecution Service ,11/05/23,UK National rail travel,PF Resourcing,Clarity Travel Management,CPSHQ070523,"1,126.20",
Crown Prosecution Service ,11/05/23,UK National rail travel,PF Learning and Development General,Clarity Travel Management,CPSHQ070523,"1,926.70",
Crown Prosecution Service ,11/05/23,UK National rail travel,Operational Business Support,Clarity Travel Management,CPSHQ070523,642.40,
Crown Prosecution Service ,11/05/23,UK National rail travel,CFO Strategic Financial Planning,Clarity Travel Management,CPSHQ070523,306.90,
Crown Prosecution Service ,11/05/23,UK National rail travel,PF People and Business Change,Clarity Travel Management,CPSHQ070523,"1,731.80",
Crown Prosecution Service ,11/05/23,UK National rail travel,Press Office,Clarity Travel Management,CPSHQ070523,208.00,
Crown Prosecution Service ,11/05/23,UK National rail travel,CFO Estates,Clarity Travel Management,CPSHQ070523,"1,119.80",
Crown Prosecution Service ,11/05/23,UK National rail travel,PF Analytics and Workforce Plan,Clarity Travel Management,CPSHQ070523,62.30,
Crown Prosecution Service ,11/05/23,UK National rail travel,DID Operational Process,Clarity Travel Management,CPSHQ070523,"1,970.20",
Crown Prosecution Service ,11/05/23,UK National rail travel,PF HR Business Partnering,Clarity Travel Management,CPSHQ070523,334.90,
Crown Prosecution Service ,11/05/23,UK National rail travel,CFO Finance Operations,Clarity Travel Management,CPSHQ070523,495.80,
Crown Prosecution Service ,11/05/23,UK National rail travel,PF HR Operations,Clarity Travel Management,CPSHQ070523,269.50,
Crown Prosecution Service ,11/05/23,UK National rail travel,Permanent Transfer Costs,Clarity Travel Management,CPSHQ070523,389.80,
Crown Prosecution Service ,11/05/23,UK National rail travel,Operational Performance,Clarity Travel Management,CPSHQ070523,261.00,
Crown Prosecution Service ,11/05/23,UK National rail travel,CFO Commercial,Clarity Travel Management,CPSHQ070523,695.40,
Crown Prosecution Service ,11/05/23,UK National rail travel,DID DTS Technology,Clarity Travel Management,CPSHQ070523,290.60,
Crown Prosecution Service ,11/05/23,UK National rail travel,CFO Fin System Change and Costings,Clarity Travel Management,CPSHQ070523,136.30,
Crown Prosecution Service ,11/05/23,UK National rail travel,Director of Legal Services,Clarity Travel Management,CPSHQ070523,75.30,
Crown Prosecution Service ,11/05/23,UK National rail travel,Court Business Unit,Clarity Travel Management,CPSHQ070523,240.70,
Crown Prosecution Service ,11/05/23,UK Hotels,Operational Performance,Clarity Travel Management,CPSHQ070523,873.60,Y
Crown Prosecution Service ,11/05/23,UK Hotels,PF Resourcing,Clarity Travel Management,CPSHQ070523,146.00,Y
Crown Prosecution Service ,11/05/23,UK Hotels,Operational Change,Clarity Travel Management,CPSHQ070523,668.15,Y
Crown Prosecution Service ,11/05/23,UK Hotels,Permanent Transfer Costs,Clarity Travel Management,CPSHQ070523,336.96,Y
Crown Prosecution Service ,11/05/23,UK Hotels,Strategy and Policy,Clarity Travel Management,CPSHQ070523,279.75,Y
Crown Prosecution Service ,11/05/23,UK Hotels,CFO Finance Operations,Clarity Travel Management,CPSHQ070523,212.00,Y
Crown Prosecution Service ,11/05/23,UK Hotels,PF HR Business Partnering,Clarity Travel Management,CPSHQ070523,122.00,Y
Crown Prosecution Service ,11/05/23,UK Hotels,CFO Financial Reporting,Clarity Travel Management,CPSHQ070523,59.50,Y
Crown Prosecution Service ,11/05/23,UK Hotels,PF Learning and Development General,Clarity Travel Management,CPSHQ070523,146.66,Y
Crown Prosecution Service ,11/05/23,UK Hotels,DTUS,Clarity Travel Management,CPSHQ070523,81.74,Y
Crown Prosecution Service ,11/05/23,UK Hotels,PF HR Business Management,Clarity Travel Management,CPSHQ070523,139.40,Y
Crown Prosecution Service ,11/05/23,UK Hotels,Private Office,Clarity Travel Management,CPSHQ070523,156.00,Y
Crown Prosecution Service ,11/05/23,UK Hotels,Corporate Communication,Clarity Travel Management,CPSHQ070523,168.00,Y
Crown Prosecution Service ,11/05/23,UK Hotels,CFO Strategic Financial Planning,Clarity Travel Management,CPSHQ070523,162.00,Y
Crown Prosecution Service ,11/05/23,UK Hotels,PF People and Business Change,Clarity Travel Management,CPSHQ070523,285.80,Y
Crown Prosecution Service ,11/05/23,UK Hotels,DID DTS Change,Clarity Travel Management,CPSHQ070523,"3,874.68",Y
Crown Prosecution Service ,11/05/23,UK Hotels,PF HR Operations,Clarity Travel Management,CPSHQ070523,348.00,Y
Crown Prosecution Service ,11/05/23,UK Hotels,DID Operational Process,Clarity Travel Management,CPSHQ070523,830.49,Y
Crown Prosecution Service ,11/05/23,UK National rail travel,Private Office,Clarity Travel Management,CPSHQ070523,75.32,Y
Crown Prosecution Service ,11/05/23,UK Hotels,Central Legal Training Team,Clarity Travel Management,CPSHQ070523,262.10,Y
Crown Prosecution Service ,11/05/23,UK National rail travel,Strategy and Policy,Clarity Travel Management,CPSHQ070523,"1,982.00",
Crown Prosecution Service ,11/05/23,UK National rail travel,PF HR Systems and Information,Clarity Travel Management,CPSHQ070523,706.40,
Crown Prosecution Service ,11/05/23,UK National rail travel,Chief Finance Officer,Clarity Travel Management,CPSHQ070523,418.30,
Crown Prosecution Service ,11/05/23,UK National rail travel,DID Security and Information,Clarity Travel Management,CPSHQ070523,"1,610.20",
Crown Prosecution Service ,11/05/23,UK National rail travel,CFO Financial Reporting,Clarity Travel Management,CPSHQ070523,123.10,
Crown Prosecution Service ,11/05/23,UK National rail travel,DID Central Leadership Team,Clarity Travel Management,CPSHQ070523,488.50,
Crown Prosecution Service ,11/05/23,UK National rail travel,CFO Finance Operations,Clarity Travel Management,CPSHQ300423,326.90,
Crown Prosecution Service ,11/05/23,UK National rail travel,CFO Estates,Clarity Travel Management,CPSHQ300423,437.30,
Crown Prosecution Service ,11/05/23,UK National rail travel,DID Operational Process,Clarity Travel Management,CPSHQ300423,"1,207.00",
Crown Prosecution Service ,11/05/23,UK National rail travel,Press Office,Clarity Travel Management,CPSHQ300423,384.40,
Crown Prosecution Service ,11/05/23,UK National rail travel,DID DTS Technology,Clarity Travel Management,CPSHQ300423,772.90,
Crown Prosecution Service ,11/05/23,UK National rail travel,Corporate Communication,Clarity Travel Management,CPSHQ300423,216.40,
Crown Prosecution Service ,11/05/23,UK National rail travel,PF HR Business Partnering,Clarity Travel Management,CPSHQ300423,618.00,
Crown Prosecution Service ,11/05/23,UK National rail travel,PF HR Operations,Clarity Travel Management,CPSHQ300423,848.40,
Crown Prosecution Service ,11/05/23,UK National rail travel,Private Office,Clarity Travel Management,CPSHQ300423,308.70,
Crown Prosecution Service ,11/05/23,UK National rail travel,DID Security and Information,Clarity Travel Management,CPSHQ300423,941.20,
Crown Prosecution Service ,11/05/23,UK National rail travel,CFO Commercial,Clarity Travel Management,CPSHQ300423,454.10,
Crown Prosecution Service ,11/05/23,UK National rail travel,CFO Fin System Change and Costings,Clarity Travel Management,CPSHQ300423,59.60,
Crown Prosecution Service ,11/05/23,UK National rail travel,Court Business Unit,Clarity Travel Management,CPSHQ300423,991.20,
Crown Prosecution Service ,11/05/23,UK National rail travel,Operational Change,Clarity Travel Management,CPSHQ300423,"1,938.25",
Crown Prosecution Service ,11/05/23,UK National rail travel,DID DTS Change,Clarity Travel Management,CPSHQ300423,"2,719.25",
Crown Prosecution Service ,11/05/23,UK National rail travel,Strategy and Policy,Clarity Travel Management,CPSHQ300423,"1,329.45",
Crown Prosecution Service ,11/05/23,Overseas Air travel,Private Office,Clarity Travel Management,CPSHQ300423,246.11,
Crown Prosecution Service ,11/05/23,UK National rail travel,PF Resourcing,Clarity Travel Management,CPSHQ300423,764.50,
Crown Prosecution Service ,11/05/23,UK National rail travel,CFO Strategic Financial Planning,Clarity Travel Management,CPSHQ300423,225.60,
Crown Prosecution Service ,11/05/23,UK National rail travel,Operational Business Support,Clarity Travel Management,CPSHQ300423,371.20,
Crown Prosecution Service ,11/05/23,UK National rail travel,PF People and Business Change,Clarity Travel Management,CPSHQ300423,"1,308.40",
Crown Prosecution Service ,11/05/23,UK National rail travel,Central Operational Training,Clarity Travel Management,CPSHQ300423,562.60,
Crown Prosecution Service ,11/05/23,UK National rail travel,DID Central Leadership Team,Clarity Travel Management,CPSHQ300423,"1,027.00",
Crown Prosecution Service ,11/05/23,UK National rail travel,Permanent Transfer Costs,Clarity Travel Management,CPSHQ300423,284.70,
Crown Prosecution Service ,11/05/23,UK National rail travel,PF Analytics and Workforce Plan,Clarity Travel Management,CPSHQ300423,512.90,
Crown Prosecution Service ,11/05/23,UK Air travel,Director of Legal Services,Clarity Travel Management,CPSHQ300423,200.46,
Crown Prosecution Service ,11/05/23,UK National rail travel,Chief Finance Officer,Clarity Travel Management,CPSHQ300423,633.20,
Crown Prosecution Service ,11/05/23,UK National rail travel,Central Legal Training Team,Clarity Travel Management,CPSHQ300423,"1,410.30",
Crown Prosecution Service ,11/05/23,UK National rail travel,Operational Performance,Clarity Travel Management,CPSHQ300423,"1,985.80",
Crown Prosecution Service ,11/05/23,UK Hotels,Private Office,Clarity Travel Management,CPSHQ300423,657.00,Y
Crown Prosecution Service ,11/05/23,UK Hotels,DID DTS Technology,Clarity Travel Management,CPSHQ300423,362.76,Y
Crown Prosecution Service ,11/05/23,UK Hotels,PF Analytics and Workforce Plan,Clarity Travel Management,CPSHQ300423,335.05,Y
Crown Prosecution Service ,11/05/23,UK Hotels,PF HR Systems and Information,Clarity Travel Management,CPSHQ300423,555.94,Y
Crown Prosecution Service ,11/05/23,UK Hotels,PF HR Business Partnering,Clarity Travel Management,CPSHQ300423,88.00,Y
Crown Prosecution Service ,11/05/23,UK Hotels,Strategy and Policy,Clarity Travel Management,CPSHQ300423,"3,001.05",Y
Crown Prosecution Service ,11/05/23,UK Hotels,Operational Business Support,Clarity Travel Management,CPSHQ300423,351.00,Y
Crown Prosecution Service ,11/05/23,UK Hotels,CFO Estates,Clarity Travel Management,CPSHQ300423,74.00,Y
Crown Prosecution Service ,11/05/23,Overseas Hotels,DID DTS Technology,Clarity Travel Management,CPSHQ300423,726.66,Y
Crown Prosecution Service ,11/05/23,UK Hotels,Operational Change,Clarity Travel Management,CPSHQ300423,"1,089.48",Y
Crown Prosecution Service ,11/05/23,UK Hotels,Director of Legal Services,Clarity Travel Management,CPSHQ300423,242.00,Y
Crown Prosecution Service ,11/05/23,UK Hotels,DID Security and Information,Clarity Travel Management,CPSHQ300423,"1,085.00",Y
Crown Prosecution Service ,11/05/23,UK Hotels,Compliance and Assurance,Clarity Travel Management,CPSHQ300423,"1,516.61",Y
Crown Prosecution Service ,11/05/23,UK Hotels,Press Office,Clarity Travel Management,CPSHQ300423,79.82,Y
Crown Prosecution Service ,11/05/23,UK Hotels,Central Operational Training,Clarity Travel Management,CPSHQ300423,297.60,Y
Crown Prosecution Service ,11/05/23,UK Hotels,PF Resourcing,Clarity Travel Management,CPSHQ300423,390.50,Y
Crown Prosecution Service ,11/05/23,Overseas Hotels,Private Office,Clarity Travel Management,CPSHQ300423,"1,044.10",Y
Crown Prosecution Service ,11/05/23,UK Hotels,DID Central Leadership Team,Clarity Travel Management,CPSHQ300423,284.08,Y
Crown Prosecution Service ,11/05/23,UK Hotels,CFO Commercial,Clarity Travel Management,CPSHQ300423,392.70,Y
Crown Prosecution Service ,11/05/23,UK Hotels,PF Learning and Development General,Clarity Travel Management,CPSHQ300423,386.10,Y
Crown Prosecution Service ,11/05/23,UK Hotels,CFO Strategic Financial Planning,Clarity Travel Management,CPSHQ300423,204.00,Y
Crown Prosecution Service ,11/05/23,UK Hotels,DID Operational Process,Clarity Travel Management,CPSHQ300423,830.24,Y
Crown Prosecution Service ,11/05/23,UK Hotels,Court Business Unit,Clarity Travel Management,CPSHQ300423,571.50,Y
Crown Prosecution Service ,11/05/23,UK Hotels,DID DTS Change,Clarity Travel Management,CPSHQ300423,762.00,Y
Crown Prosecution Service ,11/05/23,UK Hotels,Chief Finance Officer,Clarity Travel Management,CPSHQ300423,185.46,Y
Crown Prosecution Service ,11/05/23,UK Hotels,Permanent Transfer Costs,Clarity Travel Management,CPSHQ300423,860.70,Y
Crown Prosecution Service ,11/05/23,UK Hotels,Central Legal Training Team,Clarity Travel Management,CPSHQ300423,"1,624.58",Y
Crown Prosecution Service ,11/05/23,UK Hotels,PF People and Business Change,Clarity Travel Management,CPSHQ300423,213.99,Y
Crown Prosecution Service ,11/05/23,UK Hotels,CFO Finance Operations,Clarity Travel Management,CPSHQ300423,77.00,Y
Crown Prosecution Service ,11/05/23,UK National rail travel,PF HR Business Management,Clarity Travel Management,CPSHQ300423,383.60,
Crown Prosecution Service ,11/05/23,UK National rail travel,PF HR Systems and Information,Clarity Travel Management,CPSHQ300423,317.70,
Crown Prosecution Service ,11/05/23,UK National rail travel,PF Learning and Development General,Clarity Travel Management,CPSHQ300423,"1,121.70",
Crown Prosecution Service ,11/05/23,IT non capital software licences,Legal Reference and ICT Licenses,West Yorkshire Combined Authority Wakefield,VNSI4042118,"25,637.62",Y
Crown Prosecution Service ,12/05/23,Property management fees,Estate and FM: Programme,Government Property Agency London,00000001/22283,"6,402.24",Y
Crown Prosecution Service ,12/05/23,National non domestic rates,Estate and FM: Programme,Government Property Agency London,00000001/22283,"4,156.00",
Crown Prosecution Service ,12/05/23,Landlord service charge,Estate and FM: Programme,Government Property Agency London,00000001/22283,"18,659.77",
Crown Prosecution Service ,12/05/23,Lease liability non current lease payments,Balance Sheet,Government Property Agency London,00000001/22283,"6,002.47",
Crown Prosecution Service ,12/05/23,Crown Court Graduated Fee Scheme,West Midlands Complex Casework Unit,Seven Bedford Row,1894401,"47,262.00",Y
Crown Prosecution Service ,12/05/23,Crown Court Very High Cost Cases Full Scheme,East Midlands Crown Court Section,Exchange Chambers - Liverpool,541980 - SM JAN-MAR,"48,982.86",Y
Crown Prosecution Service ,12/05/23,Crown Court Graduated Fee Scheme,Yorks and Humbs CC Legal,Exchange Chambers - Manchester,624617 - DTE,"29,877.00",Y
Crown Prosecution Service ,12/05/23,Crown Court Graduated Fee Scheme,North West Complex Casework Unit,QEB Hollis Whiteman Chambers,AWH 110549 A,"40,786.50",Y
Crown Prosecution Service ,12/05/23,IT services,DTS Programme Project Cost,eSynergy Solutions Ltd,INV00001177,"27,840.00",Y
Crown Prosecution Service ,12/05/23,IT services,DTS Programme Project Cost,eSynergy Solutions Ltd,INV00001178,"70,525.20",Y
Crown Prosecution Service ,12/05/23,IT services,DTS Programme Project Cost,eSynergy Solutions Ltd,INV00001179,"129,660.00",Y
Crown Prosecution Service ,15/05/23,Crown Court Graduated Fee Scheme,London North Crown Court Unit,Red Lion Chambers (18 RLC),164243KMTtrialfees,"36,405.00",Y
Crown Prosecution Service ,15/05/23,Crown Court Graduated Fee Scheme,East of England Crown Court,Red Lion Chambers (18 RLC),166212CPX,"47,588.28",Y
Crown Prosecution Service ,15/05/23,Crown Court Graduated Fee Scheme,Thames Chiltern Crown Court Unit,Foundry Chambers (9-12 Bell Yard),198218/WH,"45,202.86",Y
Crown Prosecution Service ,15/05/23,Crown Court Very High Cost Cases Full Scheme,SEOC Team 2,Foundry Chambers (9-12 Bell Yard),199551/MC,"42,334.00",Y
Crown Prosecution Service ,15/05/23,Recruitment general costs,PF Resourcing,Cabinet Office RM Shared Services,3830162,"107,485.20",Y
Crown Prosecution Service ,15/05/23,Crown Court Graduated Fee Scheme,North West Complex Casework Unit,Exchange Chambers - Manchester,622765 - AS CLAIM 3,"58,257.24",Y
Crown Prosecution Service ,15/05/23,Crown Court Graduated Fee Scheme,North West Complex Casework Unit,Exchange Chambers Leeds ,622765 - HWI CLAIM 1,"40,494.24",Y
Crown Prosecution Service ,15/05/23,Crown Court Graduated Fee Scheme,West Midlands Crown Court Unit,St Philips Chambers,692107 KHKC,"25,220.40",Y
Crown Prosecution Service ,15/05/23,Crown Court Graduated Fee Scheme,Thames Chiltern Crown Court Unit,QEB Hollis Whiteman Chambers,JE 112732 A,"29,991.72",Y
Crown Prosecution Service ,15/05/23,PPE asset purchase clearing Furniture and fittings,Balance Sheet,Senator International Ltd Lancashire,S01801038,"54,110.76",Y
Crown Prosecution Service ,15/05/23,PPE asset purchase clearing Furniture and fittings,Balance Sheet,Senator International Ltd Lancashire,S01801747,"54,110.76",Y
Crown Prosecution Service ,16/05/23,Right of use asset clearing Buildings,Balance Sheet,Government Property Agency London,00000001/25655,"25,808.90",
Crown Prosecution Service ,16/05/23,Right of use asset clearing Buildings,Balance Sheet,Government Property Agency London,00000001/25663,"65,780.50",
Crown Prosecution Service ,16/05/23,Right of use asset clearing Buildings,Balance Sheet,Government Property Agency London,00000001/25665,"37,204.63",
Crown Prosecution Service ,16/05/23,New Works: non capital,Estate and FM: Programme,Government Property Agency London,00000001/25666,"938,773.33",
Crown Prosecution Service ,16/05/23,Crown Court Graduated Fee Scheme,Thames Chiltern Crown Court Unit,2 Kings Bench Walk London,298083-RP,"35,526.36",
Crown Prosecution Service ,16/05/23,Crown Court Graduated Fee Scheme,West Midlands Complex Casework Unit,2 Kings Bench Walk London,299118-RP,"46,067.40",
Crown Prosecution Service ,16/05/23,External legal advice - HR casework,PF Litigation,Government Legal Department,526365,"52,566.11",Y
Crown Prosecution Service ,17/05/23,Recoverable VAT control,Balance Sheet,Epiq Europe Ltd (Wordwave),0000001454,"4,797.60",Y
Crown Prosecution Service ,17/05/23,Transcriptions and Translation,Other Corporate Programme Payments,Epiq Europe Ltd (Wordwave),0000001454,"23,988.00",
Crown Prosecution Service ,17/05/23,Recoverable VAT control,Balance Sheet,Oracle Corporation UK Ltd,460083737,"18,640.35",Y
Crown Prosecution Service ,17/05/23,IT non capital software licences,Legal Reference and ICT Licenses,Oracle Corporation UK Ltd,460083737,"93,201.77",
Crown Prosecution Service ,17/05/23,Crown Court Graduated Fee Scheme,South East Complex Casework Unit,QEB Hollis Whiteman Chambers,NC 112467 B,"56,433.89",Y
Crown Prosecution Service ,18/05/23,Crown Court Very High Cost Cases Full Scheme,Cymru Wales Complex Casework Unit,Serjeants Inn Chambers,0000000180,"36,350.40",Y
Crown Prosecution Service ,18/05/23,Crown Court Graduated Fee Scheme,Mersey Cheshire Complex Casework Unit,Harrington Street Chambers,1176787/MCL,"35,019.00",
Crown Prosecution Service ,18/05/23,Overseas Residential accommodation,Intl External Funding,"Foreign, Commonwealth and Development Office",20005903,"5,800.00",
Crown Prosecution Service ,18/05/23,Overseas Residential accommodation,Intl Liaison Prosecutors,"Foreign, Commonwealth and Development Office",20005903,"7,175.00",
Crown Prosecution Service ,18/05/23,FCO platform charges excluding leases,Intl External Funding,"Foreign, Commonwealth and Development Office",20005903,"6,925.00",
Crown Prosecution Service ,18/05/23,FCO platform charges excluding leases,Intl Liaison Prosecutors,"Foreign, Commonwealth and Development Office",20005903,"17,800.00",
Crown Prosecution Service ,18/05/23,FCO platform charges excluding leases,Intl Liaison Prosecutors,"Foreign, Commonwealth and Development Office",20005903,"14,050.00",
Crown Prosecution Service ,18/05/23,FCO platform charges excluding leases,Intl Liaison Prosecutors,"Foreign, Commonwealth and Development Office",20005903,"5,900.00",
Crown Prosecution Service ,18/05/23,FCO platform charges excluding leases,Intl Liaison Prosecutors,"Foreign, Commonwealth and Development Office",20005903,"6,050.00",
Crown Prosecution Service ,18/05/23,FCO platform charges excluding leases,Intl Liaison Prosecutors,"Foreign, Commonwealth and Development Office",20005903,"11,400.00",
Crown Prosecution Service ,18/05/23,Overseas Residential accommodation,Intl Liaison Prosecutors,"Foreign, Commonwealth and Development Office",20005903,"7,800.00",
Crown Prosecution Service ,18/05/23,Overseas Residential accommodation,Intl Liaison Prosecutors,"Foreign, Commonwealth and Development Office",20005903,"4,775.00",
Crown Prosecution Service ,18/05/23,FCO platform charges excluding leases,Intl Liaison Prosecutors,"Foreign, Commonwealth and Development Office",20005903,"20,700.00",
Crown Prosecution Service ,18/05/23,FCO platform charges excluding leases,Intl Liaison Prosecutors,"Foreign, Commonwealth and Development Office",20005903,"13,925.00",
Crown Prosecution Service ,18/05/23,FCO platform charges excluding leases,Intl Liaison Prosecutors,"Foreign, Commonwealth and Development Office",20005903,"14,048.98",
Crown Prosecution Service ,18/05/23,Overseas Residential accommodation,Intl Liaison Prosecutors,"Foreign, Commonwealth and Development Office",20005903,"12,800.00",
Crown Prosecution Service ,18/05/23,Overseas Residential accommodation,Intl Liaison Prosecutors,"Foreign, Commonwealth and Development Office",20005903,"4,225.00",
Crown Prosecution Service ,18/05/23,FCO platform charges excluding leases,Intl Liaison Prosecutors,"Foreign, Commonwealth and Development Office",20005903,"10,225.00",
Crown Prosecution Service ,18/05/23,Overseas Residential accommodation,Intl Liaison Prosecutors,"Foreign, Commonwealth and Development Office",20005903,"8,700.00",
Crown Prosecution Service ,18/05/23,Overseas Residential accommodation,Intl Liaison Prosecutors,"Foreign, Commonwealth and Development Office",20005903,"9,300.00",
Crown Prosecution Service ,18/05/23,FCO platform charges excluding leases,Intl Liaison Prosecutors,"Foreign, Commonwealth and Development Office",20005903,"11,800.00",
Crown Prosecution Service ,18/05/23,Overseas Residential accommodation,Intl Liaison Prosecutors,"Foreign, Commonwealth and Development Office",20005903,"13,125.00",
Crown Prosecution Service ,18/05/23,Overseas Residential accommodation,Intl Liaison Prosecutors,"Foreign, Commonwealth and Development Office",20005903,"5,000.00",
Crown Prosecution Service ,18/05/23,FCO platform charges excluding leases,Intl Liaison Prosecutors,"Foreign, Commonwealth and Development Office",20005903,"18,100.00",
Crown Prosecution Service ,18/05/23,Overseas Residential accommodation,Intl Liaison Prosecutors,"Foreign, Commonwealth and Development Office",20005903,"10,000.00",
Crown Prosecution Service ,18/05/23,Overseas Residential accommodation,Intl Liaison Prosecutors,"Foreign, Commonwealth and Development Office",20005903,"4,600.00",
Crown Prosecution Service ,18/05/23,FCO platform charges excluding leases,Intl Liaison Prosecutors,"Foreign, Commonwealth and Development Office",20005903,"20,612.78",
Crown Prosecution Service ,18/05/23,Overseas Residential accommodation,Intl Liaison Prosecutors,"Foreign, Commonwealth and Development Office",20005903,"8,400.00",
Crown Prosecution Service ,18/05/23,FCO platform charges excluding leases,Intl Liaison Prosecutors,"Foreign, Commonwealth and Development Office",20005903,"13,800.00",
Crown Prosecution Service ,18/05/23,Overseas Residential accommodation,Intl Liaison Prosecutors,"Foreign, Commonwealth and Development Office",20005903,"4,375.00",
Crown Prosecution Service ,18/05/23,FCO platform charges excluding leases,Intl Liaison Prosecutors,"Foreign, Commonwealth and Development Office",20005903,"8,900.00",
Crown Prosecution Service ,18/05/23,Overseas Residential accommodation,Intl Liaison Prosecutors,"Foreign, Commonwealth and Development Office",20005903,"6,450.00",
Crown Prosecution Service ,18/05/23,FCO platform charges excluding leases,Intl Liaison Prosecutors,"Foreign, Commonwealth and Development Office",20005903,"18,100.00",
Crown Prosecution Service ,18/05/23,Overseas Residential accommodation,Intl Liaison Prosecutors,"Foreign, Commonwealth and Development Office",20005903,"7,275.00",
Crown Prosecution Service ,18/05/23,FCO platform charges excluding leases,Intl Liaison Prosecutors,"Foreign, Commonwealth and Development Office",20005903,"7,225.00",
Crown Prosecution Service ,18/05/23,FCO platform charges excluding leases,Intl Liaison Prosecutors,"Foreign, Commonwealth and Development Office",20005903,"7,550.00",
Crown Prosecution Service ,18/05/23,Professional subscriptions and memberships,Operational Change,Crimeline Training Ltd Wigan,20357,"43,881.60",Y
Crown Prosecution Service ,18/05/23,Crown Court Very High Cost Cases Full Scheme,RWD Midlands Wales Unit,36 Bedford Row,219853-SA-Stage 6,"27,423.26",Y
Crown Prosecution Service ,18/05/23,Crown Court Graduated Fee Scheme,West Midlands Complex Casework Unit,Cornwall Street Chambers,392515,"31,419.60",Y
Crown Prosecution Service ,18/05/23,Recoverable VAT control,Balance Sheet,Oracle Corporation UK Ltd,460083739,"31,450.45",Y
Crown Prosecution Service ,18/05/23,IT non capital software licences,Legal Reference and ICT Licenses,Oracle Corporation UK Ltd,460083739,"157,252.25",
Crown Prosecution Service ,18/05/23,Crown Court Graduated Fee Scheme,Cymru Wales Complex Casework Unit,30 Park Place Chambers,630331-6/FT,"26,311.20",
Crown Prosecution Service ,18/05/23,Crown Court Graduated Fee Scheme,Cymru Wales Complex Casework Unit,30 Park Place Chambers,630331-7/AJ,"39,149.40",
Crown Prosecution Service ,18/05/23,Crown Court Graduated Fee Scheme,Special Crime Unit York,2 Bedford Row Chambers,,"30,541.38",
Crown Prosecution Service ,19/05/23,Crown Court Graduated Fee Scheme,East of England Complex Casework Unit,Nine Bedford Row (9 Bedford Row),144954-RJS 3,"37,839.12",Y
Crown Prosecution Service ,19/05/23,Crown Court Graduated Fee Scheme,Counter Terrorism Unit: Internal Funding,23 Essex Street Chambers,200867-TMU,"38,238.00",Y
Crown Prosecution Service ,19/05/23,Crown Court Graduated Fee Scheme,South East Crown Court,23 Essex Street Chambers,201309-EM-TRIAL,"27,430.44",Y
Crown Prosecution Service ,19/05/23,Crown Court Graduated Fee Scheme,East of England Complex Casework Unit,36 Bedford Row,218980/TP,"25,955.04",Y
Crown Prosecution Service ,19/05/23,Crown Court Graduated Fee Scheme,East of England Complex Casework Unit,36 Bedford Row,218980/WC,"46,533.60",Y
Crown Prosecution Service ,22/05/23,Crown Court Graduated Fee Scheme,RWD North Unit,Seven Bedford Row,198425LSB,"39,665.16",Y
Crown Prosecution Service ,22/05/23,Crown Court Very High Cost Cases Full Scheme,RWD North Unit,Foundry Chambers (9-12 Bell Yard),199498/JWA,"26,804.32",Y
Crown Prosecution Service ,22/05/23,Advice/PreSending Very High Cost Cases Full Scheme,RWD North Unit,No 5 Fountain Court Chambers,750969,"29,714.70",Y
Crown Prosecution Service ,22/05/23,Crown Court Graduated Fee Scheme,RWD Midlands Wales Unit,5 King's Bench Walk,FH 176533,"35,151.84",Y
Crown Prosecution Service ,22/05/23,Crown Court Graduated Fee Scheme,RWD Midlands Wales Unit,Deka Chambers Ltd,SHA382623,"26,991.46",Y
Crown Prosecution Service ,23/05/23,Crown Court Graduated Fee Scheme,North West Crown Court Hub,Lincoln House Chambers,251684 TS KC,"25,964.70",Y
Crown Prosecution Service ,23/05/23,Recoverable VAT control,Balance Sheet,Accenture (UK) Ltd London,3003608865,"18,875.00",Y
Crown Prosecution Service ,23/05/23,IT services,DTS Programme Project Cost,Accenture (UK) Ltd London,3003608865,"94,375.00",
Crown Prosecution Service ,23/05/23,General Professional Services,DTS Programme Project Cost,NTT Data UK Ltd London,5028091,"102,834.00",Y
Crown Prosecution Service ,23/05/23,UK Hotels,DID DTS Technology,Clarity Travel Management,CPSHQ140523,960.91,Y
Crown Prosecution Service ,23/05/23,UK National rail travel,Permanent Transfer Costs,Clarity Travel Management,CPSHQ140523,433.80,
Crown Prosecution Service ,23/05/23,UK Hotels,Strategy and Policy,Clarity Travel Management,CPSHQ140523,491.00,Y
Crown Prosecution Service ,23/05/23,UK Hotels,DID Operational Process,Clarity Travel Management,CPSHQ140523,"1,040.29",Y
Crown Prosecution Service ,23/05/23,UK Hotels,Operational Business Support,Clarity Travel Management,CPSHQ140523,81.90,Y
Crown Prosecution Service ,23/05/23,UK Hotels,Press Office,Clarity Travel Management,CPSHQ140523,102.30,Y
Crown Prosecution Service ,23/05/23,UK Hotels,Court Business Unit,Clarity Travel Management,CPSHQ140523,282.49,Y
Crown Prosecution Service ,23/05/23,UK Hotels,Operational Change,Clarity Travel Management,CPSHQ140523,766.72,Y
Crown Prosecution Service ,23/05/23,UK Hotels,Central Legal Training Team,Clarity Travel Management,CPSHQ140523,"1,812.38",Y
Crown Prosecution Service ,23/05/23,UK Hotels,DID DTS Change,Clarity Travel Management,CPSHQ140523,"1,146.48",Y
Crown Prosecution Service ,23/05/23,UK Hotels,DID Security and Information,Clarity Travel Management,CPSHQ140523,244.56,Y
Crown Prosecution Service ,23/05/23,UK Hotels,PF HR Systems and Information,Clarity Travel Management,CPSHQ140523,229.50,Y
Crown Prosecution Service ,23/05/23,UK Hotels,PF People and Business Change,Clarity Travel Management,CPSHQ140523,346.00,Y
Crown Prosecution Service ,23/05/23,UK Hotels,Permanent Transfer Costs,Clarity Travel Management,CPSHQ140523,290.35,Y
Crown Prosecution Service ,23/05/23,UK Hotels,Central Operational Training,Clarity Travel Management,CPSHQ140523,75.00,Y
Crown Prosecution Service ,23/05/23,UK Hotels,CFO Financial Reporting,Clarity Travel Management,CPSHQ140523,107.49,Y
Crown Prosecution Service ,23/05/23,UK Hotels,PF Analytics and Workforce Plan,Clarity Travel Management,CPSHQ140523,518.20,Y
Crown Prosecution Service ,23/05/23,UK Hotels,Private Office,Clarity Travel Management,CPSHQ140523,346.00,Y
Crown Prosecution Service ,23/05/23,UK National rail travel,Central Legal Training Team,Clarity Travel Management,CPSHQ140523,768.00,
Crown Prosecution Service ,23/05/23,UK National rail travel,DID Operational Process,Clarity Travel Management,CPSHQ140523,198.40,
Crown Prosecution Service ,23/05/23,UK National rail travel,CFO Strategic Financial Planning,Clarity Travel Management,CPSHQ140523,125.60,
Crown Prosecution Service ,23/05/23,UK National rail travel,Court Business Unit,Clarity Travel Management,CPSHQ140523,"1,437.00",
Crown Prosecution Service ,23/05/23,UK National rail travel,Operational Performance,Clarity Travel Management,CPSHQ140523,"2,168.40",
Crown Prosecution Service ,23/05/23,UK National rail travel,Strategy and Policy,Clarity Travel Management,CPSHQ140523,"1,032.80",
Crown Prosecution Service ,23/05/23,UK National rail travel,PF People and Business Change,Clarity Travel Management,CPSHQ140523,"2,009.00",
Crown Prosecution Service ,23/05/23,UK National rail travel,DID Central Leadership Team,Clarity Travel Management,CPSHQ140523,883.10,
Crown Prosecution Service ,23/05/23,UK National rail travel,PF HR Operations,Clarity Travel Management,CPSHQ140523,"2,046.85",
Crown Prosecution Service ,23/05/23,UK National rail travel,CFO Commercial,Clarity Travel Management,CPSHQ140523,"1,904.65",
Crown Prosecution Service ,23/05/23,UK National rail travel,PF HR Systems and Information,Clarity Travel Management,CPSHQ140523,369.20,
Crown Prosecution Service ,23/05/23,UK National rail travel,PF Resourcing,Clarity Travel Management,CPSHQ140523,"1,964.90",
Crown Prosecution Service ,23/05/23,UK National rail travel,Chief Finance Officer,Clarity Travel Management,CPSHQ140523,"1,257.20",
Crown Prosecution Service ,23/05/23,UK National rail travel,DID DTS Technology,Clarity Travel Management,CPSHQ140523,851.30,
Crown Prosecution Service ,23/05/23,UK National rail travel,Operational Business Support,Clarity Travel Management,CPSHQ140523,38.60,
Crown Prosecution Service ,23/05/23,UK National rail travel,DTUS,Clarity Travel Management,CPSHQ140523,217.00,
Crown Prosecution Service ,23/05/23,UK National rail travel,Director of Legal Services,Clarity Travel Management,CPSHQ140523,790.20,
Crown Prosecution Service ,23/05/23,UK National rail travel,CFO Financial Reporting,Clarity Travel Management,CPSHQ140523,92.85,
Crown Prosecution Service ,23/05/23,UK National rail travel,Operational Change,Clarity Travel Management,CPSHQ140523,"2,136.00",
Crown Prosecution Service ,23/05/23,UK National rail travel,Central Operational Training,Clarity Travel Management,CPSHQ140523,415.30,
Crown Prosecution Service ,23/05/23,UK National rail travel,DID Security and Information,Clarity Travel Management,CPSHQ140523,570.70,
Crown Prosecution Service ,23/05/23,UK National rail travel,Private Office,Clarity Travel Management,CPSHQ140523,673.50,
Crown Prosecution Service ,23/05/23,UK National rail travel,PF HR Business Partnering,Clarity Travel Management,CPSHQ140523,195.70,
Crown Prosecution Service ,23/05/23,UK National rail travel,Press Office,Clarity Travel Management,CPSHQ140523,404.30,
Crown Prosecution Service ,23/05/23,UK National rail travel,Corporate Communication,Clarity Travel Management,CPSHQ140523,217.00,
Crown Prosecution Service ,23/05/23,UK National rail travel,PF National Black Crown Prosecutors Association,Clarity Travel Management,CPSHQ140523,84.50,
Crown Prosecution Service ,23/05/23,UK National rail travel,CFO Estates,Clarity Travel Management,CPSHQ140523,250.90,
Crown Prosecution Service ,23/05/23,UK National rail travel,PF Learning and Development General,Clarity Travel Management,CPSHQ140523,"4,132.50",
Crown Prosecution Service ,23/05/23,UK National rail travel,PF Analytics and Workforce Plan,Clarity Travel Management,CPSHQ140523,390.20,
Crown Prosecution Service ,23/05/23,UK National rail travel,DID DTS Change,Clarity Travel Management,CPSHQ140523,"2,127.60",
Crown Prosecution Service ,23/05/23,UK National rail travel,Compliance and Assurance,Clarity Travel Management,CPSHQ140523,146.90,
Crown Prosecution Service ,23/05/23,UK Hotels,PF Learning and Development General,Clarity Travel Management,CPSHQ140523,478.00,Y
Crown Prosecution Service ,24/05/23,Crown Court Graduated Fee Scheme,London North Crown Court Unit,5 King's Bench Walk,176547 JB trial,"32,760.00",Y
Crown Prosecution Service ,24/05/23,Courier Services,East of England Area Business Centre,DX Network Services Ltd,83814895,"2,087.81",
Crown Prosecution Service ,24/05/23,Recoverable VAT control,Balance Sheet,DX Network Services Ltd,83814895,"26,243.56",Y
Crown Prosecution Service ,24/05/23,Courier Services,Wessex Area Business Centre,DX Network Services Ltd,83814895,"5,218.62",
Crown Prosecution Service ,24/05/23,Courier Services,Yorkshire and Humberside Area Business Centre,DX Network Services Ltd,83814895,"3,593.04",
Crown Prosecution Service ,24/05/23,Courier Services,Mersey Cheshire Area Business Centre,DX Network Services Ltd,83814895,"3,812.50",
Crown Prosecution Service ,24/05/23,Courier Services,North West Area Business Centre,DX Network Services Ltd,83814895,"6,621.40",
Crown Prosecution Service ,24/05/23,Courier Services,North East Area Business Centre,DX Network Services Ltd,83814895,"1,493.97",
Crown Prosecution Service ,24/05/23,Courier Services,London North Complex Casework Unit,DX Network Services Ltd,83814895,19.91,
Crown Prosecution Service ,24/05/23,Courier Services,Cymru Wales Area Business Centre,DX Network Services Ltd,83814895,"3,804.66",
Crown Prosecution Service ,24/05/23,Courier Services,Estate and FM: Administration,DX Network Services Ltd,83814895,"12,097.03",
Crown Prosecution Service ,24/05/23,Courier Services,East Midlands Area Business Centre,DX Network Services Ltd,83814895,"7,536.05",
Crown Prosecution Service ,24/05/23,Courier Services,South East Business Centre,DX Network Services Ltd,83814895,"8,815.14",
Crown Prosecution Service ,24/05/23,Courier Services,Print Contract,DX Network Services Ltd,83814895,"18,812.50",
Crown Prosecution Service ,24/05/23,Courier Services,West Midlands Area Business Centre,DX Network Services Ltd,83814895,"8,280.54",
Crown Prosecution Service ,24/05/23,Courier Services,Estate and FM: Programme,DX Network Services Ltd,83814895,"41,968.76",
Crown Prosecution Service ,24/05/23,Courier Services,Thames and Chiltern Area Business Centre,DX Network Services Ltd,83814895,"2,955.28",
Crown Prosecution Service ,24/05/23,Courier Services,South West Area Business Centre,DX Network Services Ltd,83814895,"4,100.54",
Crown Prosecution Service ,24/05/23,Transcriptions and Translation,Other Corporate Programme Payments,AVR Transcription Ltd Bolton,APR23-CPS,"53,496.15",
Crown Prosecution Service ,24/05/23,Recoverable VAT control,Balance Sheet,AVR Transcription Ltd Bolton,APR23-CPS,"10,699.23",Y
Crown Prosecution Service ,24/05/23,Recoverable VAT control,Balance Sheet,CGI IT UK Ltd,GB014105225,"242,547.14",Y
Crown Prosecution Service ,24/05/23,IT services,Apps and Hosting Contract,CGI IT UK Ltd,GB014105225,"1,212,735.69",
Crown Prosecution Service ,25/05/23,Property management fees,Estate and FM: Programme,Government Property Agency London,00000001/24814,"6,929.53",Y
Crown Prosecution Service ,25/05/23,National non domestic rates,Estate and FM: Programme,Government Property Agency London,00000001/24814,"26,398.10",
Crown Prosecution Service ,25/05/23,Lease liability non current lease payments,Balance Sheet,Government Property Agency London,00000001/24814,"74,220.00",
Crown Prosecution Service ,25/05/23,Landlord service charge,Estate and FM: Programme,Government Property Agency London,00000001/24814,"28,970.24",
Crown Prosecution Service ,25/05/23,Property management fees,Estate and FM: Programme,Government Property Agency London,00000001/24817,"7,967.54",Y
Crown Prosecution Service ,25/05/23,National non domestic rates,Estate and FM: Programme,Government Property Agency London,00000001/24817,"17,161.33",
Crown Prosecution Service ,25/05/23,Landlord service charge,Estate and FM: Programme,Government Property Agency London,00000001/24817,"18,833.48",
Crown Prosecution Service ,25/05/23,Lease liability non current lease payments,Balance Sheet,Government Property Agency London,00000001/24817,"51,967.50",
Crown Prosecution Service ,25/05/23,Lease liability non current lease payments,Balance Sheet,Government Property Agency London,00000001/25205,"26,640.00",
Crown Prosecution Service ,25/05/23,Property management fees,Estate and FM: Programme,Government Property Agency London,00000001/25205,"7,521.64",Y
Crown Prosecution Service ,25/05/23,Landlord service charge,Estate and FM: Programme,Government Property Agency London,00000001/25205,"19,884.28",
Crown Prosecution Service ,25/05/23,National non domestic rates,Estate and FM: Programme,Government Property Agency London,00000001/25205,"12,395.94",
Crown Prosecution Service ,25/05/23,Crown Court Graduated Fee Scheme,Thames Chiltern Crown Court Unit,Foundry Chambers (9-12 Bell Yard),199017/MT - 2,"49,784.04",Y
Crown Prosecution Service ,25/05/23,Crown Court Graduated Fee Scheme,North West Complex Casework Unit,Dere Street Barristers,375628 JE1,"44,215.36",
Crown Prosecution Service ,25/05/23,UK Hotels,Operational Change,Clarity Travel Management,CPSHQ210523,783.57,Y
Crown Prosecution Service ,25/05/23,UK Hotels,Strategy and Policy,Clarity Travel Management,CPSHQ210523,445.20,Y
Crown Prosecution Service ,25/05/23,UK Hotels,Court Business Unit,Clarity Travel Management,CPSHQ210523,"1,117.49",Y
Crown Prosecution Service ,25/05/23,UK Hotels,DTUS,Clarity Travel Management,CPSHQ210523,155.00,Y
Crown Prosecution Service ,25/05/23,UK Hotels,CFO Estates,Clarity Travel Management,CPSHQ210523,446.98,Y
Crown Prosecution Service ,25/05/23,UK Hotels,Central Legal Training Team,Clarity Travel Management,CPSHQ210523,"1,827.24",Y
Crown Prosecution Service ,25/05/23,UK Hotels,CFO Finance Operations,Clarity Travel Management,CPSHQ210523,151.00,Y
Crown Prosecution Service ,25/05/23,UK Hotels,DID DTS Change,Clarity Travel Management,CPSHQ210523,"2,594.70",Y
Crown Prosecution Service ,25/05/23,UK Hotels,Operational Performance,Clarity Travel Management,CPSHQ210523,435.60,Y
Crown Prosecution Service ,25/05/23,UK Hotels,Permanent Transfer Costs,Clarity Travel Management,CPSHQ210523,189.96,Y
Crown Prosecution Service ,25/05/23,UK Hotels,CFO Financial Reporting,Clarity Travel Management,CPSHQ210523,44.01,Y
Crown Prosecution Service ,25/05/23,UK Hotels,DID Operational Process,Clarity Travel Management,CPSHQ210523,292.75,Y
Crown Prosecution Service ,25/05/23,UK Hotels,DID Central Leadership Team,Clarity Travel Management,CPSHQ210523,888.50,Y
Crown Prosecution Service ,25/05/23,UK Hotels,Press Office,Clarity Travel Management,CPSHQ210523,278.52,Y
Crown Prosecution Service ,25/05/23,UK Hotels,PF People and Business Change,Clarity Travel Management,CPSHQ210523,"1,112.00",Y
Crown Prosecution Service ,25/05/23,UK Hotels,CFO Strategic Financial Planning,Clarity Travel Management,CPSHQ210523,156.01,Y
Crown Prosecution Service ,25/05/23,UK Hotels,DID DTS Technology,Clarity Travel Management,CPSHQ210523,942.65,Y
Crown Prosecution Service ,25/05/23,UK Hotels,DID Security and Information,Clarity Travel Management,CPSHQ210523,346.20,Y
Crown Prosecution Service ,25/05/23,UK National rail travel,DID Central Leadership Team,Clarity Travel Management,CPSHQ210523,"2,091.40",
Crown Prosecution Service ,25/05/23,UK National rail travel,CFO Finance Operations,Clarity Travel Management,CPSHQ210523,100.10,
Crown Prosecution Service ,25/05/23,UK National rail travel,Chief Finance Officer,Clarity Travel Management,CPSHQ210523,277.00,
Crown Prosecution Service ,25/05/23,UK National rail travel,Press Office,Clarity Travel Management,CPSHQ210523,624.50,
Crown Prosecution Service ,25/05/23,UK National rail travel,PF Analytics and Workforce Plan,Clarity Travel Management,CPSHQ210523,635.50,
Crown Prosecution Service ,25/05/23,UK National rail travel,Court Business Unit,Clarity Travel Management,CPSHQ210523,"1,001.60",
Crown Prosecution Service ,25/05/23,UK National rail travel,Strategy and Policy,Clarity Travel Management,CPSHQ210523,"1,950.10",
Crown Prosecution Service ,25/05/23,UK National rail travel,DID DTS Change,Clarity Travel Management,CPSHQ210523,"2,877.50",
Crown Prosecution Service ,25/05/23,UK National rail travel,PF HR Business Management,Clarity Travel Management,CPSHQ210523,125.90,
Crown Prosecution Service ,25/05/23,UK National rail travel,DID Operational Process,Clarity Travel Management,CPSHQ210523,553.60,
Crown Prosecution Service ,25/05/23,UK National rail travel,PF HR Systems and Information,Clarity Travel Management,CPSHQ210523,278.50,
Crown Prosecution Service ,25/05/23,UK National rail travel,DID DTS Technology,Clarity Travel Management,CPSHQ210523,846.00,
Crown Prosecution Service ,25/05/23,UK National rail travel,Corporate Communication,Clarity Travel Management,CPSHQ210523,949.30,
Crown Prosecution Service ,25/05/23,UK National rail travel,CFO Commercial,Clarity Travel Management,CPSHQ210523,606.80,
Crown Prosecution Service ,25/05/23,UK National rail travel,Operational Performance,Clarity Travel Management,CPSHQ210523,"2,259.30",
Crown Prosecution Service ,25/05/23,UK National rail travel,Operational Business Support,Clarity Travel Management,CPSHQ210523,365.20,
Crown Prosecution Service ,25/05/23,UK National rail travel,Director of Legal Services,Clarity Travel Management,CPSHQ210523,394.60,
Crown Prosecution Service ,25/05/23,UK National rail travel,Operational Change,Clarity Travel Management,CPSHQ210523,937.00,
Crown Prosecution Service ,25/05/23,UK National rail travel,PF HR Business Partnering,Clarity Travel Management,CPSHQ210523,259.90,
Crown Prosecution Service ,25/05/23,UK National rail travel,PF People and Business Change,Clarity Travel Management,CPSHQ210523,959.40,
Crown Prosecution Service ,25/05/23,UK National rail travel,PF Analytics and Workforce Plan,Clarity Travel Management,CPSHQ210523,63.70,
Crown Prosecution Service ,25/05/23,UK National rail travel,Central Operational Training,Clarity Travel Management,CPSHQ210523,506.70,
Crown Prosecution Service ,25/05/23,UK National rail travel,PF Resourcing,Clarity Travel Management,CPSHQ210523,789.10,
Crown Prosecution Service ,25/05/23,UK National rail travel,PF MAER and Employee Relations,Clarity Travel Management,CPSHQ210523,63.70,
Crown Prosecution Service ,25/05/23,UK National rail travel,DID Security and Information,Clarity Travel Management,CPSHQ210523,"1,311.80",
Crown Prosecution Service ,25/05/23,UK National rail travel,CFO Estates,Clarity Travel Management,CPSHQ210523,350.50,
Crown Prosecution Service ,25/05/23,UK National rail travel,PF Learning and Development General,Clarity Travel Management,CPSHQ210523,763.70,
Crown Prosecution Service ,25/05/23,UK National rail travel,Private Office,Clarity Travel Management,CPSHQ210523,451.30,
Crown Prosecution Service ,25/05/23,UK National rail travel,Permanent Transfer Costs,Clarity Travel Management,CPSHQ210523,825.30,
Crown Prosecution Service ,25/05/23,UK National rail travel,CFO Financial Reporting,Clarity Travel Management,CPSHQ210523,191.50,
Crown Prosecution Service ,25/05/23,UK National rail travel,CFO Strategic Financial Planning,Clarity Travel Management,CPSHQ210523,230.00,
Crown Prosecution Service ,25/05/23,UK Hotels,PF National Black Crown Prosecutors Association,Clarity Travel Management,CPSHQ210523,142.00,Y
Crown Prosecution Service ,26/05/23,Crown Court Very High Cost Cases Full Scheme,Cymru Wales Complex Casework Unit,Apex Chambers,45880-9/CLR,"42,054.00",Y
Crown Prosecution Service ,26/05/23,Crown Court Graduated Fee Scheme,Counter Terrorism Unit: Internal Funding,No 5 Fountain Court Chambers,828972,"33,483.90",Y
Crown Prosecution Service ,26/05/23,Crown Court Graduated Fee Scheme,Special Crime Unit York,2 Bedford Row Chambers,,"51,570.60",
Crown Prosecution Service ,26/05/23,Recruitment general costs,PF Resourcing,Bailey & French Brighton,INV-0610,"19,800.00",Y
Crown Prosecution Service ,26/05/23,External Training,PF Operational HR Costs,Bailey & French Brighton,INV-0610,"19,800.00",Y
Crown Prosecution Service ,26/05/23,IT non capital software licences,Legal Reference and ICT Licenses,CDW Limited London,PSINV03972104,"114,750.00",Y
Crown Prosecution Service ,26/05/23,Other publicity and media costs,Press Office,NLA Media Access Limited Kent,Q501145,"50,924.00",Y
Crown Prosecution Service ,26/05/23,Crown Court Graduated Fee Scheme,West Midlands Crown Court Unit,Colleton Chambers,SBRU/117108,"30,836.04",
Crown Prosecution Service ,31/05/23,Crown Court Graduated Fee Scheme,West Midlands RASSO Unit,2 Hare Court Chambers -Chambers of Orlando Pownall,121546b,"47,998.34",Y
Crown Prosecution Service ,31/05/23,Crown Court Graduated Fee Scheme,London North Crown Court Unit,Foundry Chambers (9-12 Bell Yard),193778/DSM - 1,"33,185.40",Y
Crown Prosecution Service ,31/05/23,Recoverable VAT control,Balance Sheet,CGI IT UK Ltd,GB014105811,"17,433.71",Y
Crown Prosecution Service ,31/05/23,IT services,Service Desk Contract,CGI IT UK Ltd,GB014105811,"87,168.55",
Crown Prosecution Service ,31/05/23,Crown Court Graduated Fee Scheme,London North Complex Casework Unit,2 Harcourt Buildings,JD/118139,"35,019.00",Y
Crown Prosecution Service ,31/05/23,Crown Court Very High Cost Cases Full Scheme,Special Crime Unit London,QEB Hollis Whiteman Chambers,PE 111420 C,"27,072.00",Y
Crown Prosecution Service ,31/05/23,Crown Court Graduated Fee Scheme,London North Crown Court Unit,2 Harcourt Buildings,SJB/117817,"26,363.40",Y
